Cogmind - Beta 11.2 @@@ ROGUE MODE // 2022.12.28 @ 11:39:40 // Winter2022/Polymind Player: ChromeKnight Result: Destroyed by Y-45 Defender with Beam Rifle Performance ------------- Evolutions (1) 500 Regions Visited (4) 800 Robots Destroyed (28) 140 Value Destroyed (858) 858 Prototype IDs (0) 0 Alien Tech Used (0) 0 Bonus (3152) 3152 TOTAL SCORE: 4900 Bonus ------- Polymind Skill 2817 Follower Combat Kills 386 Friendly Fire -51 Cogmind --------- Core Integrity 0/400 Matter 0/0 Energy 22/100 System Corruption 0% Temperature Cool (9) Movement Core (50) Location -9/Storage Parts ------- > --- POWER (1) -------- (None) > --- PROPULSION (2) --- (None) > --- UTILITY (1) ------ (None) > --- WEAPON (0) ------- (None) > --- INVENTORY (0) ---- (None) Peak State ------------ > --- POWER ------------ Light Angular Momentum Engine > --- PROPULSION ------- Carbon-fiber Leg Carbon-fiber Leg > --- UTILITY ---------- Improved Heat Sink Improved Heat Sink > --- WEAPON ----------- Beamcaster > --- INVENTORY -------- (None) [Rating: 22] Favorites ----------- Power Improved Ion Engine Engine Improved Ion Engine Propulsion Light Treads Treads Light Treads Leg Carbon-fiber Leg Wheel Wheel Flight Unit Flight Unit Utility Heat Sink Device Heat Sink Storage Small Storage Unit Processor Machine Analyzer Protection Light Armor Plating Weapon Heavy Assault Rifle Energy Gun Beam Rifle Ballistic Gun Heavy Assault Rifle Build | -11 -10 -10 -9 -9 ------- Run | Scr Mat Min Mat Sto Slots Evolved . | . . . . . Power . | . . . . . Propulsion . | . . . . . Utility . | . . . . . Weapon . | . . . . . Parts Attached . | . . . . . Power . | . . . . . Engine . | . . . . . Core . | . . . . . Reactor . | . . . . . Propulsion . | . . . . . Treads . | . . . . . Leg . | . . . . . Wheel . | . . . . . Hover . | . . . . . Flight . | . . . . . Utility . | . . . . . Device . | . . . . . Storage . | . . . . . Processor . | . . . . . Hackware . | . . . . . Protection . | . . . . . Artifact . | . . . . . Weapon . | . . . . . Energy Gun . | . . . . . Energy Cannon . | . . . . . Ballistic Gun . | . . . . . Ballistic Cannon . | . . . . . Launcher . | . . . . . Special Weapon . | . . . . . Impact Weapon . | . . . . . Slashing Weapon . | . . . . . Piercing Weapon . | . . . . . Special Melee Weapon . | . . . . . Unidentified Prototypes . | . . . . . Parts Lost 9 | . . 1 3 5 Power 2 | . . . . 2 Propulsion 5 | . . 1 1 3 Utility 1 | . . . 1 . Weapon 1 | . . . 1 . Highest Loss Streak 2 | . . 1 2 2 To Critical Strikes . | . . . . . Average Slot Usage (%) 77 | . 95 95 72 65 Engine 11 | . 19 17 8 11 Treads 8 | . . . 11 . Leg 7 | . 14 31 . . Wheel 4 | . 24 . 4 6 Flight 1 | . . . . 23 Device 20 | . 19 28 19 . Processor 1 | . . . 2 . Protection 6 | . . . 9 . Energy Gun 7 | . 7 17 5 . Ballistic Gun 6 | . . . 7 21 Naked Turns 31 | . 14 . 12 5 Heaviest Build 18 | 9 9 16 18 4 Greatest Support 40 | 32 32 30 40 20 Greatest Overweight (x) 3 | . . 1 3 . Average Overweight (x) . | . . . . . Largest Inventory Capacity 10 | 4 4 1 10 1 Average Capacity 1 | 2 2 1 1 . Most Carried 10 | . 2 . 10 1 Average Carried . | . . . . . Final Capacity 4 | 4 1 1 . . Final Carried . | . . . . . Class Distribution -------------------- 58% | Sentry 25% | Grunt 7% | Mechanic 6% | Swarmer Dominant Class ---------------- Recycler | -10/Materials Grunt | -10/Mines Sentry | -9/Materials Swarmer | -9/Storage Resources | -11 -10 -10 -9 -9 ----------- Run | Scr Mat Min Mat Sto Matter Collected 140 | . . . 43 97 Remotely . | . . . . . Salvage Created 987 | . 42 593 145 207 Parts 50 | . 1 29 4 16 Haulers Intercepted . | . . . . . Recyclers Shooed . | . . . . . Parts Field Recycled . | . . . . . Retrieved Matter . | . . . . . Parts Self-Destructed . | . . . . . Prevented . | . . . . . Kills | -11 -10 -10 -9 -9 ------- Run | Scr Mat Min Mat Sto Combat Hostiles Destroyed 26 | . 1 19 2 4 Guns 26 | . 1 19 2 4 Classes Destroyed 5 | . 1 1 2 1 Mechanic 1 | . . . . 1 Operator 1 | . . . 1 . Swarmer 3 | . . 3 . . Grunt 20 | . 1 16 1 2 Sentry 3 | . . . 1 2 Best Kill Streak 5 | . 1 5 1 2 Combat Bots Only 5 | . 1 5 1 2 Max Kills in Single Turn 1 | . 1 1 1 1 Gunslinging . | . . . . . Exploded . | . . . . . Melee . | . . . . . Uniques/NPCs Destroyed . | . . . . . Combat | -11 -10 -10 -9 -9 -------- Run | Scr Mat Min Mat Sto Damage Taken 1769 | . 58 643 472 596 Core 565 | . 11 143 98 313 Absorbed by Shields . | . . . . . Regen/Repaired (Parts) 80 | . . . 80 . Core Remaining (%) 69 | 100 . 38 . . Volleys Fired 140 | . 11 59 16 54 Largest 2 | . 1 1 2 1 Hottest 79 | . 40 75 79 20 Shots Fired 146 | . 11 59 22 54 Gun 146 | . 11 59 22 54 Cannon . | . . . . . Launcher . | . . . . . Special . | . . . . . Kinetic 69 | . . . 15 54 Thermal 77 | . 11 59 7 . Explosive . | . . . . . Electromagnetic . | . . . . . Robot Hit Streak 17 | . 8 9 6 17 Robot Miss Streak 4 | . 3 4 3 1 Penetration Max . | . . . . . Secondary Targets . | . . . . . Shots Hit Robots 117 | . 8 44 16 49 Core Hits 44 | . 2 23 5 14 Critical Kills 1 | . . . . 1 Critical Parts Destroyed . | . . . . . Critical Strikes 6 | . . 5 . 1 Burn 5 | . . 5 . . Destroy 1 | . . . . 1 Melee Attacks . | . . . . . Impact . | . . . . . Slashing . | . . . . . Piercing . | . . . . . Sneak Attacks . | . . . . . Combat Hostiles . | . . . . . Follow-up Attacks . | . . . . . Damage Inflicted 1618 | . 91 870 253 404 Guns 1618 | . 91 870 253 404 Cannons . | . . . . . Explosions . | . . . . . Melee . | . . . . . Ramming . | . . . . . Kinetic 575 | . . . 171 404 Thermal 1043 | . 91 870 82 . Explosive . | . . . . . Electromagnetic . | . . . . . Impact . | . . . . . Slashing . | . . . . . Piercing . | . . . . . Highest Corruption . | . . . . . Average Corruption . | . . . . . Corruption Purged . | . . . . . Corruption Blocked . | . . . . . Overload Shots . | . . . . . Overflow Damage . | . . . . . Projectiles . | . . . . . Explosions . | . . . . . Melee . | . . . . . Knockbacks . | . . . . . Impact . | . . . . . Kinetic . | . . . . . Secondary . | . . . . . Self-Inflicted Damage . | . . . . . Shots . | . . . . . Rammed . | . . . . . Targets Rammed . | . . . . . Kicked . | . . . . . Crushed . | . . . . . Highest Temperature 101 | . 30 36 38 101 Average Temperature 19 | . 18 11 19 24 Received Heat Transfer 780 | . 30 300 213 237 Siege Activations . | . . . . . Robots Corrupted . | . . . . . Combat Hostiles . | . . . . . Parts Fried . | . . . . . Impact Corruptions . | . . . . . Robots Melted . | . . . . . Combat Hostiles . | . . . . . Parts Melted 4 | . . 3 1 . Heat Transferred 2265 | . 200 1880 185 . Parts Sabotaged . | . . . . . Parts Stolen . | . . . . . Parts Stripped . | . . . . . Power Chain Reactions . | . . . . . Missiles Intercepted . | . . . . . Alert | -11 -10 -10 -9 -9 ------- Run | Scr Mat Min Mat Sto Peak Influence 410 | . 24 189 188 410 Initial 33 | . . 9 33 18 Average 35 | . 5 58 17 194 Maximum Alert Level 2 | . . . . 2 Low Security (%) 96 | 100 100 100 100 46 Level 1 2 | . . . . 45 Level 2 . | . . . . 7 Level 3 . | . . . . . Level 4 . | . . . . . Level 5 . | . . . . . High Security . | . . . . . Max Security . | . . . . . Squads Dispatched 2 | . . . 1 1 Investigation . | . . . . . Extermination . | . . . . . Reinforcement 2 | . . . 1 1 Assault . | . . . . . Garrison . | . . . . . Intercept . | . . . . . Searches Triggered . | . . . . . Construction Impeded . | . . . . . Haulers Reinforced . | . . . . . Active Scanning Responses . | . . . . . Cargo Convoy Interrupts . | . . . . . Stealth | -11 -10 -10 -9 -9 --------- Run | Scr Mat Min Mat Sto Distress Signals 2 | . . 1 . 1 Communications Jammed . | . . . . . Distress Signals . | . . . . . Times Spotted 62 | . 4 23 14 21 Peak Tracking Total 8 | . 3 4 3 8 Tactical Retreats 4 | . . 1 2 1 Traps | -11 -10 -10 -9 -9 ------- Run | Scr Mat Min Mat Sto Traps Triggered 1 | . . . . 1 Indirectly . | . . . . . Trap Hack Attempts . | . . . . . Triggered . | . . . . . Disarmed . | . . . . . Reprogrammed . | . . . . . Reused . | . . . . . Traps Extracted . | . . . . . Installed . | . . . . . Triggered . | . . . . . Machines | -11 -10 -10 -9 -9 ---------- Run | Scr Mat Min Mat Sto Machines Disabled . | . . . . . Max in Single Turn . | . . . . . Machines Sabotaged . | . . . . . Garrisons Compromised . | . . . . . Overloaded Fab Kills . | . . . . . Hacking | -11 -10 -10 -9 -9 --------- Run | Scr Mat Min Mat Sto Machines Accessed 10 | . 3 1 3 3 Terminals 7 | . 3 . 1 3 Fabricators . | . . . . . Repair Stations 2 | . . . 2 . Recycling Units . | . . . . . Scanalyzers . | . . . . . Garrison Access . | . . . . . Total Hacks 29 | . 6 1 14 8 Successful 24 | . 4 1 13 6 Failed 5 | . 2 . 1 2 Catastrophic . | . . . . . Database Lockouts . | . . . . . Manual 13 | . 6 . 2 5 Terminals 16 | . 6 . 2 8 Fabricators . | . . . . . Repair Stations 12 | . . . 12 . Recycling Units . | . . . . . Scanalyzers . | . . . . . Garrison Access . | . . . . . Terminal Hacks 4 | . 1 1 . 2 Robot Analysis 1 | . 1 . . . Open Door 2 | . . 1 . 1 Zone Layout 1 | . . . . 1 Fabricator Hacks . | . . . . . Repair Station Hacks 11 | . . . 11 . Scan Component 6 | . . . 6 . Repair 5 | . . . 5 . Recycling Unit Hacks . | . . . . . Scanalyzer . | . . . . . Garrison Access Hacks . | . . . . . Unauthorized Hacks 9 | . 3 . 2 4 Terminals 9 | . 3 . 2 4 Track 2 | . 1 . . 1 Assimilate 1 | . 1 . . . Botnet 4 | . 1 . 1 2 Operators 2 | . . . 1 1 Fabricators . | . . . . . Repair Stations . | . . . . . Recycling Units . | . . . . . Scanalyzers . | . . . . . Garrison Access . | . . . . . Data Cores Recovered . | . . . . . Used . | . . . . . Hacking Detections 7 | . 2 . 3 2 Full Trace Events . | . . . . . Feedback Events . | . . . . . Feedback Blocked . | . . . . . Robot Schematics Acquired . | . . . . . Robots Built . | . . . . . Authchips . | . . . . . Time . | . . . . . Total Robot Build Rating . | . . . . . Part Schematics Acquired . | . . . . . Parts Built . | . . . . . Authchips . | . . . . . Time . | . . . . . Total Part Build Rating . | . . . . . Parts Repaired 5 | . . . 5 . Time 148 | . . . 148 . Parts Recycled . | . . . . . Recycled Matter . | . . . . . Retrieved Matter . | . . . . . Retrieved Components . | . . . . . Parts Scanalyzed . | . . . . . Part Schematics Acquired . | . . . . . Parts Damaged . | . . . . . Bothacking | -11 -10 -10 -9 -9 ------------ Run | Scr Mat Min Mat Sto Used RIF Installer . | . . . . . Robots Hacked 7 | . 1 . 6 . Non-combat 3 | . . . 3 . Combat 4 | . 1 . 3 . Robot Hacks Applied 7 | . 1 . 6 . find_station 3 | . . . 3 . find_shortcuts 4 | . 1 . 3 . Relay Couplers Released . | . . . . . Fabnet Peak Effective % . | . . . . . Robots Rewired . | . . . . . Allies Hacked . | . . . . . Hacks Repelled . | . . . . . Allies | -11 -10 -10 -9 -9 -------- Run | Scr Mat Min Mat Sto Total Allies 13 | . 1 2 . 10 Largest Group 10 | . 1 3 3 10 Highest-Rated Group 88 | . 10 53 56 88 Highest-Rated Ally 31 | . 10 31 31 16 Total Orders 10 | . 2 6 1 1 STAY 6 | . 1 3 1 1 FOLLOW 4 | . 1 3 . . Ally Attacks 98 | . . 5 10 83 Total Damage 1107 | . . 84 189 834 Kills 15 | . . . 5 10 Allies Corrupted . | . . . . . Allies Melted . | . . . . . Intel | -11 -10 -10 -9 -9 ------- Run | Scr Mat Min Mat Sto Robot Analysis Total 7 | 1 2 1 2 1 Derelict Logs Recovered 1 | . . 1 . . Drone Launches . | . . . . . Drone Recoveries . | . . . . . Exploration | -11 -10 -10 -9 -9 ------------- Run | Scr Mat Min Mat Sto Turns Passed 5401 | 15 197 1087 3770 332 Spaces Moved 2104 | 21 156 470 1093 364 Core 272 | 11 10 1 219 31 Treads 406 | . . . 406 . Legs 598 | . 37 469 92 . Wheels 388 | 10 109 . 215 54 Hover . | . . . . . Flight 440 | . . . 161 279 Fastest Speed 37 | 50 50 50 37 37 Average Speed 105 | 73 101 121 119 45 Slowest Speed 200 | 100 120 190 200 80 Overloaded Moves . | . . . . . Propulsion Burnouts . | . . . . . Robots Hopped 18 | . . . 4 14 Cave-ins Triggered . | . . . . . Exploration Rate (%) 43 | 3 37 84 36 55 Regions Visited 4 Branch Regions 2 Pre-discovered Areas 1 | . . 1 . . Known Exits Taken . | . . . . . Unknown Exits Taken 4 | 1 1 1 1 . Scrap Searched 1 | . . 1 . . Spaces Dug . | . . . . . Terrain Destroyed . | . . . . . Melee . | . . . . . Projectile . | . . . . . AOE . | . . . . . Terrain Rammed . | . . . . . Walls Destroyed . | . . . . . Machines Disabled . | . . . . . Actions | -11 -10 -10 -9 -9 --------- Run | Scr Mat Min Mat Sto Total 5138 | 20 183 928 3536 471 Wait 2870 | . 13 400 2395 62 Move 2067 | 20 155 469 1084 339 Hop 15 | . . . 4 11 Pick Up 18 | . 2 . 15 1 Fast Attach . | . . . . . Attach . | . . . . . Detach . | . . . . . Swap . | . . . . . Drop 6 | . . . 6 . Fire 140 | . 11 59 16 54 Melee . | . . . . . Ram . | . . . . . Kick . | . . . . . Crush . | . . . . . Escape Stasis . | . . . . . Rewire 4 | . . . . 4 Trap . | . . . . . Miscellaneous 18 | . 2 . 16 . Route ------- -11/Scrapyard -10/Materials (discovered 2 exits: *Mat / *Min) -10/Mines -9/Materials -9/Storage (discovered 2 exits: [*Mat] / [Rec]) History --------- Turn | Location | Event 4 | -11/Scrapyard | Discovered new exit (range 15) 16 | -11/Scrapyard | Entered Materials 81 | -10/Materials | Discovered new exit (range 14) 113 | -10/Materials | Discovered new exit (range 11) 213 | -10/Materials | Entered Mines 213 | -10/Mines | Accompanied by 1 ally 277 | -10/Mines | Excavation squad dispatched 277 | -10/Mines | A large section of the Mines collapsed 527 | -10/Mines | Excavation squad dispatched 599 | -10/Mines | Found the Drone Emporium 654 | -10/Mines | Learned location of Zion (-7) 777 | -10/Mines | Excavation squad dispatched 1027 | -10/Mines | Excavation squad dispatched 1036 | -10/Mines | Discovered new exit (range 10) 1038 | -10/Mines | Core integrity fell below 50% 1300 | -10/Mines | Entered Materials 1300 | -9/Materials | Accompanied by 3 allies 1305 | -9/Materials | Led the pair of lost Derelicts to an unsafe place 3090 | -9/Materials | Discovered new exit (range 16) 3241 | -9/Materials | Repaired Beam Rifle? 3349 | -9/Materials | Repaired Imp. Ion Engine 3349 | -9/Materials | Repaired Lgt. Treads 3375 | -9/Materials | Repaired Lgt. Treads? 3890 | -9/Materials | Repaired Hvy. Assault Rifle? 5070 | -9/Materials | Entered Storage 5095 | -9/Storage | Discovered new exit (range 17) 5146 | -9/Storage | Core integrity fell below 50% 5199 | -9/Storage | Assisted by bots powering up and referring to "LRC-V3" 5306 | -9/Storage | Discovered new exit (range 16) 5380 | -9/Storage | Core integrity fell below 20% 5402 | -9/Storage | Destroyed by Y-45 Defender with Beam Rifle Last Messages --------------- 05338_ Y-45 Defender heat spikes uncontrollably. 05339_ Y-45 Defender heat short circuits Lgt. Treads. 05342_ Y-45 Defender destroyed. 05345_ Acquired 7 matter. 05348_ K-01 Serf collects debris. 05353_ Released control of S-10 Pest. 05354_ Took control of K-01 Serf. 05354_ Extracted analysis data for K-01 Serf. 05354_ Acquired 50 matter. 05354_ Collected debris. 05360_ Acquired Prototype Ballistic Cannon. 05366_ Collected debris. 05379_ Triggered Heavy Explosive Trap. 05379_ An explosion rips through the floor. 05391_ U-05 Engineer builds a Wall. 05393_ The unstable cave ceiling collapses. 05394_ Wheel destroyed. 05397_ Lgt. Ion Engine destroyed. 05398_ Released control of K-01 Serf. 05399_ K-01 Serf collects debris. Map ----- +----------------------------------------------------+ | ??????????????????????????????#!#??# # ### | | ??????????????????????????????# #??# # T | | ????????????????????????#####?#!#??# # #??? | | ????????????????????????# T###%##?#[= #???? | | ????????????????????????# [[#=[=###!= #???? | | ????????????????????????# [=%/%% %=%=[* #???? | | ????????????????????????# %#=%!###### #???? | | ????????????????????????# ###%##????? #???? | | ????????????????????????#####?#=#???????#???? | | ??????????????????????????????#!#?????? ????? | | ??????????????????????????????# #?????? ????? | | ??????????????????????????????#!#?????? ????? | | ??????????????????????#???????# #?????? ????? | | ?????????????????????? ####?### #?????? ????? | | ???????????????????# ## #?????? ????? | | ???????????????????# """ """ ## #?????# #???? | | ?????????????????### """ """ ## ###???# #???? | | ?????????????????#"" """ """ ## # ##### #???? | | ?????????????????#"T ## ! # #???? | | ???????????????????" ## ! # #???? | | ????????????????????? ## # #???? | | ??????????????????????? ??# ## #???? | | ?????????################s#####a # ##### | | ?????????# ^ [! **%= | | ?????????# < =%*= k%*== | | ?????????# @ =%! [%=!%! Y | | ?????????######+#######+###########+######### | | ????????## ##=T#???????# | | ????????# % ## ##???????# """" | | ????????## ## #???????# """" | | ?????????# ####???????## """" """ | | ?????????# """ """ #???????????# """" R"? | | ?????????# """ """ #???????????# ? ""?? | | ?????????# """ """ #???????????? ?????? ??? | | ?????????#############????????????#?????????? | | | | | | | | | | | | | | | | | | | | | | | | | | | | | | | +----------------------------------------------------+ Best States ------------- Heat Dissipation 51 Energy Generation 23 Energy Capacity 215 Matter Stores 100 Matter Capacity 100 Sight Range 16 Terrain Scan Density 10 Armor Coverage 150 Resistance: EX 50 Resistance: I 25 Evasion (%) 62 Recoil Reduction 2 Item Schematics ----------------- None Robot Schematics ------------------ None Fabricated ------------ Nothing Alien Tech Used ----------------- None Achievements -------------- None Challenges ------------ None Polymind | -11 -10 -10 -9 -9 ---------- Run | Scr Mat Min Mat Sto Robots Controlled 10 | 1 1 1 6 1 Combat Hostiles 4 | . 1 . 3 . Allies 1 | . . 1 . . Classes Controlled 6 | 1 1 . 3 1 Average Host Suspicion 63 | 1 45 88 54 91 Unsuspicious Activity 2177 | 2 19 . 2139 17 Returns to Shadow 3 | . . . 3 . Fuzzy Dispatches . | . . . . . Protomatter Created 210 | . . 95 37 78 Used 106 | 5 15 14 67 5 Decayed 28 | . . 10 18 . Highest Spend 23 | 5 15 14 23 5 Top 5 Hosts by Kills: 9V-0ZT(g) (-10/Mines: 13) G-34 Mercenary (-10/Materials: 7) Game ------ Seed ClaymoresGaussTerrabomb Manual? 0 Play Time 00:23:43 Cumulative 375.5 hours Start 2022.12.28 @ 11:08:05 End 2022.12.28 @ 11:39:40 Sessions 1 Manual Loads 0 Difficulty Rogue Special Mode Winter2022/Polymind Game No. 668 Rogue 513 Adventurer 148 Explorer 7 Win Type - Total 13 Types 11/0/1/1/0/0/0/0/0 Lore% 78 Gallery% 88 Achievement% 69 Wizard Run 0 Options --------- ASCII 0 Keyboard 0 Movement Numpad Keybinds 0 Fullscreen 2 Font 18/SmallcapsGlow Map View 76x50 Tactical HUD 1 Map Filters NONE Filters NONE Steam 1 RUN: f25581c4-a319-4ba0-8f00-ebc79026cb43